[Event "Late-Titled-Tuesday-Blitz-January-30-2024"]
[Site "Chess.com"]
[Date "2024.01.30"]
[Round "11"]
[White "Zhigalko_Sergei"]
[Black "GMWSO"]
[Result "0-1"]
[WhiteElo "2943"]
[BlackElo "3093"]
[TimeControl "180+1"]
[EndTime "16:06:48 PST"]
[Termination "GMWSO won on time"]

1. e4 {[%clk 0:03:00.9]} 1... c5 {[%clk 0:02:58.7]} 2. Nf3 {[%clk 0:02:59.8]}
2... e6 {[%clk 0:02:59.2]} 3. c3 {[%clk 0:03:00.2]} 3... Nf6 {[%clk 0:02:57.9]}
4. e5 {[%clk 0:03:00.6]} 4... Nd5 {[%clk 0:02:58.4]} 5. Bc4 {[%clk 0:03:01.5]}
5... d6 {[%clk 0:02:53.8]} 6. d4 {[%clk 0:03:01.4]} 6... cxd4 {[%clk 0:02:54]}
7. cxd4 {[%clk 0:03:02.3]} 7... Be7 {[%clk 0:02:53.1]} 8. O-O {[%clk 0:03:02.3]}
8... O-O {[%clk 0:02:53.4]} 9. Bd2 {[%clk 0:03:02.9]} 9... Nc6 {[%clk
0:02:18.9]} 10. Nc3 {[%clk 0:03:01.8]} 10... Nb6 {[%clk 0:02:19.3]} 11. Bb3
{[%clk 0:03:01.7]} 11... Bd7 {[%clk 0:02:10.5]} 12. Qe2 {[%clk 0:03:01.2]} 12...
Na5 {[%clk 0:02:03.8]} 13. Bc2 {[%clk 0:03:01.2]} 13... Nac4 {[%clk 0:02:01.8]}
14. exd6 {[%clk 0:02:44.4]} 14... Nxd6 {[%clk 0:01:52.8]} 15. Ne5 {[%clk
0:02:43.1]} 15... Rc8 {[%clk 0:01:50.4]} 16. Rad1 {[%clk 0:02:39.7]} 16... Bc6
{[%clk 0:01:48.6]} 17. Rfe1 {[%clk 0:02:38.3]} 17... Bf6 {[%clk 0:01:34.9]} 18.
Bf4 {[%clk 0:01:35.1]} 18... Nd5 {[%clk 0:01:33.5]} 19. Bg3 {[%clk 0:01:28.3]}
19... Nxc3 {[%clk 0:01:30.6]} 20. bxc3 {[%clk 0:01:28.1]} 20... Bd5 {[%clk
0:01:31]} 21. Ng4 {[%clk 0:01:08.7]} 21... Be7 {[%clk 0:01:26.4]} 22. Ne3 {[%clk
0:01:01.4]} 22... Bg5 {[%clk 0:00:55.4]} 23. Nxd5 {[%clk 0:00:42.6]} 23... exd5
{[%clk 0:00:56.3]} 24. Qf3 {[%clk 0:00:38.6]} 24... Nc4 {[%clk 0:00:47]} 25. h4
{[%clk 0:00:36]} 25... Bh6 {[%clk 0:00:45.5]} 26. Re2 {[%clk 0:00:28]} 26... g6
{[%clk 0:00:37.9]} 27. Rde1 {[%clk 0:00:27.7]} 27... Nd2 {[%clk 0:00:34.5]} 28.
Qd3 {[%clk 0:00:22.4]} 28... Ne4 {[%clk 0:00:34.3]} 29. Be5 {[%clk 0:00:04.8]}
29... Nxc3 {[%clk 0:00:29.4]} 30. Re3 {[%clk 0:00:05.4]} 30... Bxe3 {[%clk
0:00:28.5]} 31. Rxe3 {[%clk 0:00:04.7]} 31... Ne4 {[%clk 0:00:27.7]} 32. Qe2
{[%clk 0:00:02.6]} 32... Qxh4 {[%clk 0:00:25.7]} 33. g3 {[%clk 0:00:02.1]} 33...
Qh5 {[%clk 0:00:21.3]} 34. Qd3 {[%clk 0:00:01.3]} 34... Rc3 {[%clk 0:00:19.3]}
35. Qxc3 {[%clk 0:00:01.4]} 35... Nxc3 {[%clk 0:00:19.2]} 36. Rxc3 {[%clk
0:00:02.3]} 36... Qe2 {[%clk 0:00:19.3]} 37. Kg2 {[%clk 0:00:02.7]} 37... h5
{[%clk 0:00:19.3]} 38. Rc7 {[%clk 0:00:02.4]} 38... b6 {[%clk 0:00:18.8]} 39.
Bb3 {[%clk 0:00:02.4]} 39... Qe4+ {[%clk 0:00:18.2]} 40. Kg1 {[%clk 0:00:02.9]}
40... Re8 {[%clk 0:00:17.8]} 41. Rd7 {[%clk 0:00:02.6]} 41... Rxe5 {[%clk
0:00:17.6]} 42. dxe5 {[%clk 0:00:03.5]} 42... Qe1+ {[%clk 0:00:17.6]} 43. Kg2
{[%clk 0:00:03.1]} 43... Qe4+ {[%clk 0:00:17.8]} 44. Kg1 {[%clk 0:00:02.9]}
44... Qxe5 {[%clk 0:00:17.6]} 45. Rxd5 {[%clk 0:00:03.3]} 45... Qe1+ {[%clk
0:00:17.2]} 46. Kg2 {[%clk 0:00:03.8]} 46... Qe4+ {[%clk 0:00:17.4]} 47. Kg1
{[%clk 0:00:04.1]} 47... Qe1+ {[%clk 0:00:17.5]} 48. Kg2 {[%clk 0:00:04]} 48...
Qe7 {[%clk 0:00:18.1]} 49. Rd4 {[%clk 0:00:01.5]} 49... Kg7 {[%clk 0:00:16.7]}
50. Rf4 {[%clk 0:00:01.7]} 50... f5 {[%clk 0:00:16.3]} 51. Rc4 {[%clk
0:00:02.5]} 51... Kh6 {[%clk 0:00:16.3]} 52. Kg1 {[%clk 0:00:01.7]} 52... a5
{[%clk 0:00:15.7]} 53. Rc8 {[%clk 0:00:01.1]} 53... Qe1+ {[%clk 0:00:15.4]} 54.
Kg2 {[%clk 0:00:01.4]} 54... Qe4+ {[%clk 0:00:15.3]} 55. Kg1 {[%clk 0:00:01.9]}
55... a4 {[%clk 0:00:15.2]} 56. Bf7 {[%clk 0:00:01.5]} 56... Kg7 {[%clk
0:00:14.7]} 57. Bg8 {[%clk 0:00:01.5]} 57... Qe1+ {[%clk 0:00:14.1]} 58. Kg2
{[%clk 0:00:01.8]} 58... Qe4+ {[%clk 0:00:14.4]} 59. Kg1 {[%clk 0:00:01.9]}
59... b5 {[%clk 0:00:14.3]} 60. Rb8 {[%clk 0:00:01.8]} 60... b4 {[%clk
0:00:13.9]} 61. Kh2 {[%clk 0:00:02]} 61... Qe2 {[%clk 0:00:13.2]} 62. Kg1 {[%clk
0:00:01.9]} 62... Qe1+ {[%clk 0:00:13]} 63. Kg2 {[%clk 0:00:02.4]} 63... Qe5
{[%clk 0:00:13.9]} 64. Rb7+ {[%clk 0:00:02.2]} 64... Kxg8 {[%clk 0:00:13.6]} 0-1

[Event "Late-Titled-Tuesday-Blitz-January-30-2024"]
[Site "Chess.com"]
[Date "2024.01.30"]
[Round "11"]
[White "platy3"]
[Black "SpeedofLight0"]
[Result "1-0"]
[WhiteElo "2901"]
[BlackElo "3027"]
[TimeControl "180+1"]
[EndTime "16:06:49 PST"]
[Termination "platy3 won by checkmate"]

1. e4 {[%clk 0:03:00.9]} 1... Nc6 {[%clk 0:02:58.3]} 2. Nf3 {[%clk 0:02:58.3]}
2... e5 {[%clk 0:02:58.1]} 3. Bc4 {[%clk 0:02:58]} 3... Nf6 {[%clk 0:02:57.9]}
4. d3 {[%clk 0:02:58]} 4... h6 {[%clk 0:02:53.5]} 5. a4 {[%clk 0:02:55.7]} 5...
d6 {[%clk 0:02:51.2]} 6. Nc3 {[%clk 0:02:53.9]} 6... g6 {[%clk 0:02:48.6]} 7.
O-O {[%clk 0:02:50.5]} 7... Bg7 {[%clk 0:02:45.4]} 8. h3 {[%clk 0:02:50.1]} 8...
O-O {[%clk 0:02:45.8]} 9. a5 {[%clk 0:02:49.9]} 9... a6 {[%clk 0:02:45.2]} 10.
Be3 {[%clk 0:02:48.4]} 10... Kh7 {[%clk 0:02:44]} 11. Re1 {[%clk 0:02:43.8]}
11... Nh5 {[%clk 0:02:43.2]} 12. d4 {[%clk 0:02:36.4]} 12... Bd7 {[%clk
0:02:23]} 13. dxe5 {[%clk 0:02:31.8]} 13... Nxe5 {[%clk 0:02:22.1]} 14. Bb3
{[%clk 0:02:23.3]} 14... f5 {[%clk 0:02:09.2]} 15. exf5 {[%clk 0:02:18.8]} 15...
Rxf5 {[%clk 0:02:07.6]} 16. Nd4 {[%clk 0:02:14]} 16... Rf6 {[%clk 0:02:00.9]}
17. Nd5 {[%clk 0:02:07.2]} 17... Rf8 {[%clk 0:02:00]} 18. f4 {[%clk 0:02:06.6]}
18... Nc6 {[%clk 0:01:54.5]} 19. c3 {[%clk 0:02:02.9]} 19... Nf6 {[%clk
0:01:51.6]} 20. Nf3 {[%clk 0:01:54.4]} 20... Be6 {[%clk 0:01:42.3]} 21. Nxf6+
{[%clk 0:01:38.4]} 21... Rxf6 {[%clk 0:01:41]} 22. Bc2 {[%clk 0:01:34.9]} 22...
Bf5 {[%clk 0:01:40.5]} 23. Bxf5 {[%clk 0:01:32.4]} 23... Rxf5 {[%clk 0:01:35.9]}
24. g4 {[%clk 0:01:32.5]} 24... Rxa5 {[%clk 0:01:30.6]} 25. Rxa5 {[%clk
0:01:32]} 25... Nxa5 {[%clk 0:01:31.5]} 26. f5 {[%clk 0:01:29.7]} 26... gxf5
{[%clk 0:01:27]} 27. Qd3 {[%clk 0:01:29.6]} 27... Qd7 {[%clk 0:01:16.7]} 28. Nh4
{[%clk 0:01:29.1]} 28... Qb5 {[%clk 0:01:10.3]} 29. Qb1 {[%clk 0:01:23.3]} 29...
Nc4 {[%clk 0:01:07.1]} 30. Nxf5 {[%clk 0:01:20.8]} 30... Qxb2 {[%clk 0:00:50.5]}
31. Qe4 {[%clk 0:01:10.5]} 31... Nxe3 {[%clk 0:00:50.5]} 32. Rxe3 {[%clk
0:01:04.2]} 32... Kh8 {[%clk 0:00:45.7]} 33. Qe7 {[%clk 0:01:01.1]} 33... Rg8
{[%clk 0:00:15]} 34. Nxg7 {[%clk 0:01:00.6]} 34... Qb1+ {[%clk 0:00:15.3]} 35.
Re1 {[%clk 0:00:55.6]} 35... Qb6+ {[%clk 0:00:15.4]} 36. Kf1 {[%clk 0:00:39.1]}
36... Qb5+ {[%clk 0:00:12.8]} 37. Kg2 {[%clk 0:00:34.1]} 37... Qc6+ {[%clk
0:00:10.5]} 38. Kh2 {[%clk 0:00:31.1]} 38... Rxg7 {[%clk 0:00:08.5]} 39. Qf8+
{[%clk 0:00:31.2]} 39... Kh7 {[%clk 0:00:08]} 40. Re8 {[%clk 0:00:31.8]} 40...
Qd5 {[%clk 0:00:05.4]} 41. Kg3 {[%clk 0:00:18.8]} 41... Qd3+ {[%clk 0:00:05.4]}
42. Kh4 {[%clk 0:00:19.3]} 42... Qd5 {[%clk 0:00:04.7]} 43. c4 {[%clk 0:00:16]}
43... Qg5+ {[%clk 0:00:03.1]} 44. Kg3 {[%clk 0:00:16.5]} 44... a5 {[%clk
0:00:02.8]} 45. Qh8+ {[%clk 0:00:15.9]} 45... Kg6 {[%clk 0:00:03.2]} 46. Re6+
{[%clk 0:00:16.7]} 46... Qf6 {[%clk 0:00:03.5]} 47. Rxf6+ {[%clk 0:00:14.7]}
47... Kxf6 {[%clk 0:00:04.4]} 48. Qxh6+ {[%clk 0:00:15]} 48... Kf7 {[%clk
0:00:05]} 49. Qf4+ {[%clk 0:00:15]} 49... Kg8 {[%clk 0:00:04.9]} 50. Qf5 {[%clk
0:00:15.1]} 50... b6 {[%clk 0:00:04.4]} 51. h4 {[%clk 0:00:15.2]} 51... Rf7
{[%clk 0:00:04.9]} 52. Qg6+ {[%clk 0:00:14]} 52... Kf8 {[%clk 0:00:05.3]} 53. h5
{[%clk 0:00:13.6]} 53... a4 {[%clk 0:00:05.9]} 54. h6 {[%clk 0:00:12.5]} 54...
a3 {[%clk 0:00:06.1]} 55. h7 {[%clk 0:00:12.4]} 55... Rxh7 {[%clk 0:00:05.6]}
56. Qxh7 {[%clk 0:00:12.5]} 56... a2 {[%clk 0:00:06.5]} 57. Qh8+ {[%clk
0:00:13]} 57... Kf7 {[%clk 0:00:07.1]} 58. Qa1 {[%clk 0:00:13.6]} 58... b5
{[%clk 0:00:07.6]} 59. Qxa2 {[%clk 0:00:14.3]} 59... bxc4 {[%clk 0:00:08.5]} 60.
Qxc4+ {[%clk 0:00:14.6]} 60... d5 {[%clk 0:00:08.5]} 61. Qxd5+ {[%clk
0:00:14.9]} 61... Kg6 {[%clk 0:00:09]} 62. Qf5+ {[%clk 0:00:14.7]} 62... Kg7
{[%clk 0:00:09.3]} 63. g5 {[%clk 0:00:15.2]} 63... c5 {[%clk 0:00:09.9]} 64.
Qxc5 {[%clk 0:00:15.2]} 64... Kg6 {[%clk 0:00:10.3]} 65. Kg4 {[%clk 0:00:15.1]}
65... Kh7 {[%clk 0:00:10.7]} 66. Kh5 {[%clk 0:00:14.9]} 66... Kg7 {[%clk
0:00:11.6]} 67. g6 {[%clk 0:00:14.8]} 67... Kf6 {[%clk 0:00:11.8]} 68. Qf2+
{[%clk 0:00:14.2]} 68... Ke5 {[%clk 0:00:12.7]} 69. g7 {[%clk 0:00:14.1]} 69...
Kd5 {[%clk 0:00:13.4]} 70. g8=R {[%clk 0:00:12]} 70... Ke4 {[%clk 0:00:14.3]}
71. Re8+ {[%clk 0:00:11.9]} 71... Kd3 {[%clk 0:00:14.8]} 72. Re3+ {[%clk
0:00:11.3]} 72... Kc4 {[%clk 0:00:15]} 73. Qf4+ {[%clk 0:00:11.4]} 73... Kd5
{[%clk 0:00:15.9]} 74. Re5+ {[%clk 0:00:11.4]} 74... Kd6 {[%clk 0:00:16.8]} 75.
Qf6+ {[%clk 0:00:11.6]} 75... Kd7 {[%clk 0:00:17.5]} 76. Re7+ {[%clk 0:00:11.8]}
76... Kd8 {[%clk 0:00:18.4]} 77. Kh4 {[%clk 0:00:11.7]} 77... Kc8 {[%clk
0:00:18.6]} 78. Qf8# {[%clk 0:00:11.9]} 1-0

[Event "Late-Titled-Tuesday-Blitz-January-30-2024"]
[Site "Chess.com"]
[Date "2024.01.30"]
[Round "11"]
[White "Hui_Li_Macau"]
[Black "malakismayil"]
[Result "0-1"]
[WhiteElo "2367"]
[BlackElo "2540"]
[TimeControl "180+1"]
[EndTime "16:06:52 PST"]
[Termination "malakismayil won on time"]

1. e4 {[%clk 0:02:19.8]} 1... e5 {[%clk 0:02:59.4]} 2. Nf3 {[%clk 0:02:17.9]}
2... Nc6 {[%clk 0:03:00]} 3. Bb5 {[%clk 0:02:12.6]} 3... a6 {[%clk 0:02:59.9]}
4. Ba4 {[%clk 0:02:12.3]} 4... Nf6 {[%clk 0:03:00]} 5. O-O {[%clk 0:02:09.3]}
5... b5 {[%clk 0:02:59]} 6. Bb3 {[%clk 0:02:09.4]} 6... Be7 {[%clk 0:02:59.9]}
7. Re1 {[%clk 0:02:09.4]} 7... O-O {[%clk 0:02:59.1]} 8. c3 {[%clk 0:02:09.6]}
8... d6 {[%clk 0:02:58.5]} 9. h3 {[%clk 0:02:09.5]} 9... h6 {[%clk 0:02:57.1]}
10. d4 {[%clk 0:02:09.4]} 10... Re8 {[%clk 0:02:55.5]} 11. Nbd2 {[%clk
0:02:09.7]} 11... Bf8 {[%clk 0:02:55.4]} 12. Nf1 {[%clk 0:02:07.8]} 12... Bb7
{[%clk 0:02:37.5]} 13. Ng3 {[%clk 0:02:07.1]} 13... Na5 {[%clk 0:02:36.5]} 14.
Bc2 {[%clk 0:02:06.4]} 14... g6 {[%clk 0:02:35.5]} 15. a4 {[%clk 0:01:46]} 15...
Bg7 {[%clk 0:02:31.3]} 16. Bd3 {[%clk 0:01:44.9]} 16... bxa4 {[%clk 0:02:27.7]}
17. Qxa4 {[%clk 0:01:42.4]} 17... Nc6 {[%clk 0:02:28.3]} 18. Be3 {[%clk
0:01:25.2]} 18... Nd7 {[%clk 0:02:24.6]} 19. Qc2 {[%clk 0:01:12.5]} 19... Ne7
{[%clk 0:02:14.1]} 20. Qd2 {[%clk 0:01:00.2]} 20... Kh7 {[%clk 0:02:14.1]} 21.
Nh2 {[%clk 0:00:55.5]} 21... Ng8 {[%clk 0:02:04.8]} 22. f4 {[%clk 0:00:52.7]}
22... exf4 {[%clk 0:01:55.2]} 23. Bxf4 {[%clk 0:00:53.6]} 23... c5 {[%clk
0:01:55.3]} 24. Nf3 {[%clk 0:00:45.7]} 24... cxd4 {[%clk 0:01:52.3]} 25. cxd4
{[%clk 0:00:46]} 25... Qb6 {[%clk 0:01:52.4]} 26. Bc4 {[%clk 0:00:38.7]} 26...
Re7 {[%clk 0:01:46.9]} 27. Kh2 {[%clk 0:00:24.1]} 27... Rae8 {[%clk 0:01:43.6]}
28. Qa5 {[%clk 0:00:20]} 28... Qxa5 {[%clk 0:01:38.9]} 29. Rxa5 {[%clk
0:00:20.9]} 29... Nb6 {[%clk 0:00:56]} 30. Bxa6 {[%clk 0:00:17.9]} 30... Bxe4
{[%clk 0:00:52.8]} 31. Bb5 {[%clk 0:00:14.4]} 31... Bxf3 {[%clk 0:00:39.3]} 32.
Bxe8 {[%clk 0:00:12.3]} 32... Rxe1 {[%clk 0:00:35.8]} 33. Bxf7 {[%clk
0:00:12.6]} 33... Be4 {[%clk 0:00:19.3]} 34. Nxe4 {[%clk 0:00:07.1]} 34... Rxe4
{[%clk 0:00:18.8]} 35. Bxd6 {[%clk 0:00:07.2]} 35... Rxd4 {[%clk 0:00:16.3]} 36.
Bc5 {[%clk 0:00:07.4]} 36... Nc4 {[%clk 0:00:11.3]} 37. Bxd4 {[%clk 0:00:04.2]}
37... Nxa5 {[%clk 0:00:11.3]} 38. Bb6 {[%clk 0:00:02.9]} 38... Nc6 {[%clk
0:00:11.2]} 39. b3 {[%clk 0:00:02.2]} 39... Nge7 {[%clk 0:00:10.8]} 40. Bc4
{[%clk 0:00:02.4]} 40... Be5+ {[%clk 0:00:11.6]} 41. Kg1 {[%clk 0:00:02.4]}
41... Nf5 {[%clk 0:00:12.1]} 42. Bf2 {[%clk 0:00:01.5]} 42... Bd4 {[%clk
0:00:12.4]} 43. Kf1 {[%clk 0:00:02]} 43... Bxf2 {[%clk 0:00:12.3]} 44. Kxf2
{[%clk 0:00:02.9]} 44... Nd6 {[%clk 0:00:12.7]} 45. Be2 {[%clk 0:00:02.9]} 45...
Nd4 {[%clk 0:00:12.2]} 46. Bc4 {[%clk 0:00:02.5]} 46... Kg7 {[%clk 0:00:10.8]}
47. Bd5 {[%clk 0:00:02.2]} 47... Kf6 {[%clk 0:00:10.8]} 48. Ke3 {[%clk
0:00:02.7]} 48... Ke5 {[%clk 0:00:11.5]} 49. Bg8 {[%clk 0:00:03.2]} 49... N6f5+
{[%clk 0:00:10.4]} 50. Kd3 {[%clk 0:00:03.3]} 50... Nd6 {[%clk 0:00:11.1]} 51.
b4 {[%clk 0:00:03.3]} 51... Nc6 {[%clk 0:00:09.9]} 52. Kc3 {[%clk 0:00:03.2]}
52... g5 {[%clk 0:00:06.8]} 53. g3 {[%clk 0:00:03.5]} 53... h5 {[%clk
0:00:06.2]} 54. Ba2 {[%clk 0:00:02.8]} 54... Ne4+ {[%clk 0:00:06.1]} 55. Kc4
{[%clk 0:00:02.3]} 55... Nxg3 {[%clk 0:00:07]} 56. Kc5 {[%clk 0:00:02.7]} 56...
Nd4 {[%clk 0:00:03.2]} 57. b5 {[%clk 0:00:02.6]} 57... Ne4+ {[%clk 0:00:04.1]}
58. Kb6 {[%clk 0:00:02.4]} 58... Nd6 {[%clk 0:00:03.3]} 0-1

[Event "Late-Titled-Tuesday-Blitz-January-30-2024"]
[Site "Chess.com"]
[Date "2024.01.30"]
[Round "11"]
[White "SantoBlue"]
[Black "Azerichess"]
[Result "1-0"]
[WhiteElo "3010"]
[BlackElo "3068"]
[TimeControl "180+1"]
[EndTime "16:06:55 PST"]
[Termination "SantoBlue won on time"]

1. e4 {[%clk 0:03:00.9]} 1... e5 {[%clk 0:02:58.6]} 2. Nf3 {[%clk 0:03:00.1]}
2... Nc6 {[%clk 0:02:59]} 3. Nc3 {[%clk 0:02:58.3]} 3... Nf6 {[%clk 0:02:58.9]}
4. d4 {[%clk 0:02:59]} 4... exd4 {[%clk 0:02:59.3]} 5. Nxd4 {[%clk 0:02:59.8]}
5... Nxe4 {[%clk 0:02:59.3]} 6. Nxe4 {[%clk 0:02:55.2]} 6... Qe7 {[%clk
0:02:59]} 7. f3 {[%clk 0:02:55.6]} 7... d5 {[%clk 0:02:56]} 8. Nxc6 {[%clk
0:02:55.9]} 8... bxc6 {[%clk 0:02:55.8]} 9. Qd4 {[%clk 0:02:56.5]} 9... dxe4
{[%clk 0:02:53.3]} 10. Qxe4 {[%clk 0:02:57.4]} 10... Qxe4+ {[%clk 0:02:49.4]}
11. fxe4 {[%clk 0:02:58.3]} 11... Bd6 {[%clk 0:02:46.3]} 12. Bd2 {[%clk
0:02:52.6]} 12... Bg4 {[%clk 0:02:40.5]} 13. Be2 {[%clk 0:02:47.1]} 13... Bxe2
{[%clk 0:02:38.5]} 14. Kxe2 {[%clk 0:02:48]} 14... f6 {[%clk 0:02:38.2]} 15. Kf3
{[%clk 0:02:45.2]} 15... Kf7 {[%clk 0:02:34.8]} 16. Rad1 {[%clk 0:02:39.7]}
16... Ke6 {[%clk 0:02:20.8]} 17. Be3 {[%clk 0:02:35.2]} 17... a5 {[%clk
0:02:17.6]} 18. Rd3 {[%clk 0:02:34.6]} 18... Rhb8 {[%clk 0:02:14.9]} 19. b3
{[%clk 0:02:33.8]} 19... a4 {[%clk 0:02:15.3]} 20. Rc3 {[%clk 0:02:29.1]} 20...
Ra6 {[%clk 0:02:12.4]} 21. Rc4 {[%clk 0:02:25.3]} 21... axb3 {[%clk 0:02:12.3]}
22. axb3 {[%clk 0:02:25.4]} 22... Rb4 {[%clk 0:02:12]} 23. Rxb4 {[%clk
0:02:22.5]} 23... Bxb4 {[%clk 0:02:12.9]} 24. Rd1 {[%clk 0:02:20.7]} 24... Bd6
{[%clk 0:02:12.7]} 25. Rd4 {[%clk 0:02:16.4]} 25... h5 {[%clk 0:02:03.6]} 26. h3
{[%clk 0:02:10.3]} 26... Ra1 {[%clk 0:01:54.9]} 27. Rc4 {[%clk 0:02:03.8]} 27...
Kd7 {[%clk 0:01:50.8]} 28. Ra4 {[%clk 0:01:52]} 28... Rb1 {[%clk 0:01:31.9]} 29.
Ra8 {[%clk 0:01:48.4]} 29... Rb2 {[%clk 0:01:27.1]} 30. Rg8 {[%clk 0:01:46.7]}
30... g5 {[%clk 0:01:12.6]} 31. Bd4 {[%clk 0:01:47]} 31... Rxc2 {[%clk
0:01:12.3]} 32. Bxf6 {[%clk 0:01:47.2]} 32... Ke6 {[%clk 0:01:12.8]} 33. Bxg5
{[%clk 0:01:38.9]} 33... Rc3+ {[%clk 0:01:12.7]} 34. Ke2 {[%clk 0:01:39.5]}
34... Rg3 {[%clk 0:01:09.2]} 35. Rg6+ {[%clk 0:01:16.4]} 35... Kd7 {[%clk
0:00:37.5]} 36. Kf2 {[%clk 0:01:03.3]} 36... Rxb3 {[%clk 0:00:33.9]} 37. Bf6
{[%clk 0:01:02.8]} 37... Ba3 {[%clk 0:00:31]} 38. e5 {[%clk 0:00:55.3]} 38...
Ke6 {[%clk 0:00:29.9]} 39. Bh8+ {[%clk 0:00:55.3]} 39... Kf7 {[%clk 0:00:29.5]}
40. Rxc6 {[%clk 0:00:51.4]} 40... Rb7 {[%clk 0:00:24]} 41. Bf6 {[%clk
0:00:49.3]} 41... Bb4 {[%clk 0:00:18.4]} 42. Bg5 {[%clk 0:00:43.4]} 42... Be7
{[%clk 0:00:15.7]} 43. Bxe7 {[%clk 0:00:41.4]} 43... Kxe7 {[%clk 0:00:16.6]} 44.
Kf3 {[%clk 0:00:40.4]} 44... Kd7 {[%clk 0:00:16]} 45. Rh6 {[%clk 0:00:40.9]}
45... Rb3+ {[%clk 0:00:14.7]} 46. Kf4 {[%clk 0:00:40.5]} 46... Rb2 {[%clk
0:00:15.1]} 47. g3 {[%clk 0:00:40.5]} 47... Rb4+ {[%clk 0:00:11.4]} 48. Kf5
{[%clk 0:00:41.1]} 48... Rb3 {[%clk 0:00:12.3]} 49. Rh7+ {[%clk 0:00:38.4]}
49... Kc6 {[%clk 0:00:12.4]} 50. g4 {[%clk 0:00:37]} 50... hxg4 {[%clk 0:00:12]}
51. hxg4 {[%clk 0:00:37.9]} 51... Rf3+ {[%clk 0:00:12]} 52. Ke6 {[%clk
0:00:37.2]} 52... Rg3 {[%clk 0:00:12]} 53. Rg7 {[%clk 0:00:37.7]} 53... Kb6
{[%clk 0:00:12.2]} 54. Kd7 {[%clk 0:00:31.8]} 54... c5 {[%clk 0:00:12.2]} 55. e6
{[%clk 0:00:32.4]} 55... Rd3+ {[%clk 0:00:12.5]} 56. Kc8 {[%clk 0:00:31.5]}
56... Re3 {[%clk 0:00:11.5]} 57. e7 {[%clk 0:00:29.1]} 57... c4 {[%clk
0:00:12.4]} 58. Kd8 {[%clk 0:00:25.2]} 58... c3 {[%clk 0:00:12.5]} 59. Rh7
{[%clk 0:00:22.1]} 59... c2 {[%clk 0:00:12.4]} 60. Rh1 {[%clk 0:00:21.2]} 60...
Rd3+ {[%clk 0:00:12.4]} 61. Kc8 {[%clk 0:00:18.6]} 61... Rc3+ {[%clk 0:00:12.2]}
62. Kd7 {[%clk 0:00:16.9]} 62... Rd3+ {[%clk 0:00:12.4]} 63. Ke6 {[%clk
0:00:17.4]} 63... Re3+ {[%clk 0:00:07.4]} 64. Kf7 {[%clk 0:00:15.6]} 64... Rf3+
{[%clk 0:00:07.4]} 65. Kg6 {[%clk 0:00:13.1]} 65... Re3 {[%clk 0:00:05.8]} 66.
Rc1 {[%clk 0:00:13.7]} 1-0